bitfinex/quotes_SOLUSD_20241222
["timestamp","ask_amount","ask_price","bid_price","bid_amount"]
[1734866885952,0.6856552,186.48,186.47,24.58088692]
[1734866886367,0.6856552,186.48,186.47,0.80400292]
[1734866886663,0.6856552,186.48,186.46,135.9]
[1734866886839,0.6856552,186.48,186.41,137.5137]
[1734866887040,0.6856552,186.48,186.42,0.80421269]
[1734866888165,0.6856552,186.48,186.45,23.776884]
[1734866888734,0.6856552,186.48,186.44,20.0]
[1734866890651,0.6856552,186.48,186.39,135.9]
[1734866890851,0.6856552,186.48,186.4,0.80438521]
[1734866892447,0.6856552,186.48,186.37,23.776884]
[1734866892640,7.7734,186.47,186.38,0.8044961]
[1734866893570,7.7734,186.47,186.37,0.80452258]
[1734866893769,0.50073928,186.46,186.37,0.80452258]
[1734866893938,0.50073928,186.46,186.33,0.12549]
[1734866894144,7.7734,186.47,186.37,0.80461657]
[1734866894767,1.62350594,186.46,186.37,0.80461657]
[1734866895064,5.60371454,186.46,186.37,0.80461657]
[1734866895367,1.62350594,186.45,186.37,0.80461657]
[1734866896074,7.7734,186.47,186.37,0.80461657]
[1734866896240,0.50073928,186.46,186.37,0.80461657]
[1734866896440,7.7734,186.47,186.37,0.80461657]
[1734866897273,1.62378944,186.46,186.37,0.80461657]
[1734866897673,7.7734,186.47,186.37,0.80461657]
[1734866899081,1.62464998,186.46,186.37,0.80461657]
[1734866899371,7.7734,186.47,186.37,0.80461657]
[1734866900167,0.50073928,186.46,186.37,0.80461657]
[1734866900348,2.12625671,186.46,186.37,0.80461657]
[1734866900869,0.50073928,186.46,186.37,0.80461657]
[1734866901246,7.7734,186.47,186.37,0.80461657]
[1734866901655,0.50073928,186.46,186.38,23.902374]
[1734866901861,7.7734,186.47,186.4,23.776884]
[1734866904573,7.7734,186.47,186.41,0.80438761]
[1734866906968,0.50073928,186.46,186.37,0.80439904]
[1734866907274,1.62902099,186.46,186.37,0.80439904]
[1734866907461,3.99483442,186.45,186.37,0.80439904]
[1734866907660,5.62385541,186.45,186.37,0.80439904]
[1734866907860,5.62385541,186.45,186.38,0.80441011]
[1734866908063,7.7734,186.47,186.39,23.776884]
[1734866908276,7.7734,186.47,186.4,0.80439659]
[1734866908574,1.62998745,186.46,186.4,0.80439659]
[1734866909264,7.7734,186.47,186.4,0.80439659]
[1734866910273,0.6856552,186.48,186.41,23.776884]
[1734866910466,0.6856552,186.48,186.42,0.80428132]
[1734866911778,0.6856552,186.48,186.4,0.80434452]
[1734866915181,0.6856552,186.48,186.41,23.776884]
[1734866915368,0.6856552,186.48,186.42,0.8042976]
[1734866920389,1.63264126,186.47,186.42,0.8042976]
[1734866920564,1.63264126,186.47,186.36,136.70435671]
[1734866920885,1.63264126,186.46,186.37,23.776884]
[1734866921097,1.63264126,186.46,186.39,23.776884]
[1734866921265,1.63264126,186.46,186.4,0.80438002]
[1734866921469,1.63264126,186.45,186.4,0.80438002]
[1734866922291,0.6856552,186.48,186.4,0.80438002]
[1734866922868,4.83683038,186.47,186.4,0.80438002]
[1734866923063,8.8410061,186.47,186.4,0.80438002]
[1734866923285,5.63750933,186.47,186.38,0.80440786]
[1734866923468,1.63333361,186.46,186.38,0.80440786]
[1734866923872,1.63333361,186.45,186.38,0.80440786]
[1734866924075,3.29283361,186.45,186.38,0.80440786]
[1734866924276,10.41682229,186.44,186.33,136.70459572]
[1734866924491,12.0501559,186.44,186.33,135.9]
[1734866924777,4.00632229,186.43,186.33,135.9]
[1734866924967,7.21117333,186.43,186.33,135.9]
[1734866925194,1.63333361,186.42,186.33,135.9]
[1734866925690,1.63333361,186.42,186.34,0.80453298]
[1734866925879,1.63333361,186.41,186.35,23.776884]
[1734866926067,1.63333361,186.41,186.36,0.80454681]
[1734866926281,6.4105,186.44,186.36,0.80454681]
[1734866926774,5.63986594,186.43,186.36,0.80454681]
[1734866927287,4.0061249,186.42,186.36,0.80454681]
[1734866927499,5.63986594,186.42,186.36,0.80454681]
[1734866927679,1.63374104,186.42,186.36,0.80454681]
[1734866928207,6.4105,186.44,186.36,0.80454681]
[1734866928810,4.83853286,186.43,186.36,0.80454681]
[1734866928973,8.84460509,186.43,186.36,0.80454681]
[1734866929378,6.4105,186.44,186.36,0.80454681]
[1734866929379,1.63369955,186.42,186.36,0.80454681]
[1734866929983,6.4105,186.44,186.36,0.80454681]
[1734866930389,1.63371831,186.43,186.36,0.80454681]
[1734866930583,4.8402408,186.43,186.36,0.80454681]
[1734866930782,1.63371831,186.42,186.36,0.80454681]
[1734866930984,1.63371831,186.42,186.37,23.776884]
[1734866931190,1.63371831,186.42,186.38,0.8044112]
[1734866931598,1.6595,186.45,186.38,0.8044112]
[1734866931893,4.00831086,186.44,186.38,0.8044112]
[1734866932090,4.00831086,186.44,186.34,23.776884]
[1734866932295,1.63458003,186.43,186.36,23.776884]
[1734866932483,1.63458003,186.43,186.37,0.80458578]
[1734866932683,7.21591892,186.42,186.37,0.80458578]
[1734866932901,8.85049895,186.42,186.37,0.80458578]
[1734866933274,4.00831086,186.41,186.34,0.80462579]
[1734866933474,5.64289089,186.41,186.35,23.776884]
[1734866933687,5.64289089,186.41,186.36,0.80460508]
[1734866933882,1.63458003,186.41,186.36,0.80460508]
[1734866934083,1.63458003,186.4,186.36,0.80460508]
[1734866934483,2.16023928,186.45,186.36,0.80460508]
[1734866934789,7.22088508,186.44,186.36,0.80460508]
[1734866934988,8.85683489,186.44,186.36,0.80460508]
[1734866935484,8.85683489,186.43,186.36,0.80460508]
[1734866935990,4.01160282,186.42,186.36,0.80460508]
[1734866936189,8.85683489,186.42,186.36,0.80460508]
[1734866936390,8.85683489,186.42,186.26,99.33435264]
[1734866936391,4.01160282,186.41,186.32,23.776884]
[1734866936594,8.85683489,186.41,186.34,23.776884]
[1734866936788,8.85683489,186.41,186.35,0.80465855]
[1734866936986,4.01160282,186.4,186.35,0.80465855]
[1734866937198,5.64755263,186.4,186.35,0.80465855]
[1734866937581,1.63594981,186.39,186.35,0.80465855]
[1734866938201,6.4671,186.43,186.35,0.80465855]
[1734866938705,4.84567027,186.42,186.35,0.80465855]
[1734866939005,8.85837775,186.42,186.35,0.80465855]
[1734866939190,3.2093846,186.41,186.35,0.80465855]
[1734866939391,7.22209208,186.41,186.35,0.80465855]
[1734866939707,1.63628567,186.4,186.35,0.80465855]
[1734866940307,6.4671,186.43,186.35,0.80465855]
[1734866940712,1.63637198,186.42,186.35,0.80465855]
[1734866940895,8.85926906,186.42,186.35,0.80465855]
[1734866941298,5.64909258,186.41,186.35,0.80465855]
[1734866941499,8.85926906,186.41,186.35,0.80465855]
[1734866942008,5.64909258,186.4,186.35,0.80465855]
[1734866942610,0.50073928,186.42,186.32,0.80464408]
[1734866942811,1.5748,186.41,186.3,0.80481763]
[1734866943115,3.70957326,186.4,186.3,0.80481763]
[1734866943603,1.63398211,186.39,186.31,0.12549]
[1734866943909,4.00810529,186.38,186.32,0.80468625]
[1734866944095,1.63398211,186.37,186.32,0.80468625]
[1734866944410,1.63398211,186.37,186.31,0.80479216]
[1734866944708,1.63398211,186.36,186.31,0.80479216]
[1734866944909,5.63921904,186.36,186.31,0.80479216]
[1734866945424,1.5748,186.35,186.24,8.41717632]
[1734866945634,20.0,186.33,186.25,0.80502671]
[1734866945918,0.50073928,186.32,186.24,8.41717632]
[1734866946093,6.4501,186.31,186.24,8.41717632]
[1734866946613,6.4501,186.31,186.21,0.8051914]
[1734866947088,4.83339396,186.3,186.19,0.80520523]
[1734866947430,1.5748,186.28,186.19,0.80520523]
[1734866948097,1.5748,186.28,186.2,0.80530443]
[1734866949101,1.5748,186.28,186.17,0.80530525]
[1734866949413,1.5748,186.28,186.18,23.776884]
[1734866949588,1.5748,186.28,186.19,0.80529803]
[1734866949925,4.00072341,186.27,186.19,0.80529803]
[1734866950085,5.62726992,186.27,186.2,23.776884]
[1734866950287,1.62654651,186.27,186.21,0.80526857]
[1734866950613,0.50073928,186.27,186.16,20.0]
[1734866950786,0.50073928,186.27,186.17,0.80539778]
[1734866951302,21.5748,186.28,186.18,0.12549]
[1734866951499,1.5748,186.28,186.19,0.80522223]
[1734866951704,1.5748,186.28,186.2,23.776884]
[1734866952010,1.5748,186.28,186.21,0.80521548]
[1734866952191,1.5748,186.28,186.22,23.776884]
[1734866952392,1.5748,186.28,186.23,0.80517793]
[1734866952821,6.4501,186.31,186.23,0.80517793]
[1734866952822,6.4501,186.31,186.24,23.776884]
[1734866952988,6.4501,186.31,186.25,0.80504836]
[1734866954429,6.4501,186.31,186.26,23.776884]
[1734866954588,6.4501,186.36,186.27,0.80494418]
[1734866955094,1.62422376,186.35,186.27,0.80494418]
[1734866955891,6.4501,186.36,186.27,0.80494418]
[1734866956714,1.62446904,186.35,186.27,0.80494418]
[1734866957090,2.12520832,186.35,186.26,23.776884]
[1734866957504,1.62446904,186.34,186.26,23.776884]
[1734866957922,0.50073928,186.35,186.26,23.776884]
[1734866958994,1.6229908,186.34,186.26,23.776884]
[1734866960020,0.50073928,186.35,186.26,23.776884]
[1734866960815,6.4501,186.36,186.26,24.58194011]
[1734866961117,1.62317795,186.34,186.26,24.58194011]
[1734866961620,6.4501,186.36,186.26,24.58194011]
[1734866961799,6.4501,186.36,186.27,0.80499306]
[1734866962114,3.98304848,186.35,186.27,0.80499306]
[1734866962300,5.6062111,186.35,186.27,0.80499306]
[1734866962696,1.62316262,186.35,186.27,0.80499306]
[1734866963023,1.62316262,186.34,186.27,0.80499306]
[1734866963617,1.62316262,186.35,186.27,0.80499306]
[1734866964013,6.4501,186.36,186.27,0.80499306]
[1734866964617,3.98484978,186.35,186.27,0.80499306]
[1734866965119,6.4501,186.36,186.27,0.80499306]
[1734866965621,1.6242358,186.35,186.27,0.80499306]
[1734866966190,6.4501,186.36,186.28,23.776884]
[1734866966397,6.4501,186.36,186.29,0.80486134]
[1734866966599,1.5748,186.37,186.3,23.776884]
[1734866966921,1.5748,186.37,186.31,0.80479721]
[1734866967525,1.5748,186.37,186.25,155.9]
[1734866967709,1.5748,186.37,186.27,23.776884]
[1734866968006,1.5748,186.37,186.29,23.776884]
[1734866968206,1.5748,186.37,186.3,0.80489549]
[1734866970821,6.2247,186.4,186.31,23.776884]
[1734866971126,6.2247,186.4,186.33,23.776884]
[1734866971328,3.19333307,186.39,186.33,23.776884]
[1734866971531,4.8205072,186.39,186.33,23.776884]
[1734866971931,3.99247029,186.38,186.33,23.776884]
[1734866972116,5.61964442,186.38,186.33,23.776884]
[1734866972427,1.62717413,186.38,186.33,23.776884]
[1734866972628,6.2247,186.4,186.33,23.776884]
[1734866972828,3.99321466,186.39,186.33,23.776884]
[1734866973329,6.2247,186.4,186.33,23.776884]
[1734866973627,1.62812853,186.38,186.33,23.776884]
[1734866974125,3.19512259,186.39,186.34,0.80472853]
[1734866974629,6.2247,186.4,186.34,0.80472853]
[1734866975123,5.62335506,186.39,186.34,0.80472853]
[1734866975430,5.62335506,186.39,186.35,23.776884]
[1734866975636,1.62853853,186.39,186.36,0.8046204]
[1734866975852,1.62853853,186.38,186.36,0.8046204]
[1734866976330,1.62853853,186.43,186.36,0.8046204]
[1734866976533,1.62853853,186.43,186.35,23.776884]
[1734866976717,1.62853853,186.42,186.36,0.80461927]
[1734866976903,4.82627208,186.42,186.36,0.80461927]
[1734866977109,3.99716578,186.41,186.36,0.80461927]
[1734866977328,5.62570431,186.41,186.36,0.80461927]
[1734866977517,7.19489933,186.4,186.36,0.80461927]
[1734866977718,8.82343786,186.4,186.35,23.776884]
[1734866978026,3.19773355,186.39,186.35,23.776884]
[1734866978202,3.19773355,186.39,186.36,0.80463253]
[1734866978406,1.62853853,186.38,186.36,0.80463253]
[1734866978830,0.50073928,186.45,186.36,0.80463253]
[1734866979208,0.50073928,186.45,186.29,142.3841]
[1734866979209,20.0,186.43,186.33,23.776884]
[1734866979408,0.50073928,186.42,186.33,24.58162386]
[1734866979709,3.19941375,186.41,186.33,24.58162386]
[1734866979926,4.82991378,186.41,186.33,24.58162386]
[1734866980331,3.19941375,186.4,186.33,24.58162386]
[1734866980533,4.82991378,186.4,186.33,24.58162386]
[1734866981022,4.82991378,186.4,186.32,20.80480879]
[1734866981339,4.82991378,186.39,186.32,0.80480879]
[1734866981631,4.82991378,186.39,186.29,0.80482602]
[1734866981830,1.63050003,186.38,186.29,0.80482602]
[1734866982337,1.63050003,186.37,186.3,23.776884]
[1734866982635,1.63050003,186.37,186.31,0.80481612]
[1734866982812,0.50073928,186.42,186.31,0.80481612]
[1734866983511,4.83565574,186.41,186.31,0.80481612]
[1734866983713,0.50073928,186.4,186.31,0.80481612]
[1734866984011,5.33639502,186.4,186.31,0.80481612]
[1734866984419,1.6321274,186.39,186.31,0.80481612]
[1734866984627,4.83565574,186.39,186.31,0.80481612]
[1734866985013,1.6321274,186.38,186.31,0.80481612]
[1734866985215,4.83565574,186.38,186.31,0.80481612]
[1734866985539,1.6321274,186.37,186.31,0.80481612]
[1734866986133,1.6321274,186.36,186.31,0.80481612]
[1734866986635,0.50073928,186.42,186.31,0.80481612]
[1734866986939,4.83955604,186.41,186.31,0.80481612]
[1734866987139,0.50073928,186.4,186.31,0.80481612]
[1734866987543,1.63363218,186.39,186.28,21.6322]
[1734866987855,0.50073928,186.38,186.29,24.58181249]
[1734866988220,1.63363218,186.37,186.29,24.58181249]
[1734866988640,3.20592386,186.36,186.29,24.58181249]
[1734866988826,4.83955604,186.36,186.29,24.58181249]
[1734866989029,4.83955604,186.36,186.29,0.80492849]
[1734866989228,1.63363218,186.35,186.29,0.80492849]
[1734866989525,4.83955604,186.35,186.29,0.80492849]
[1734866989834,1.63363218,186.34,186.29,0.80492849]
[1734866990518,1.63363218,186.33,186.29,0.80492849]
[1734866991117,0.50073928,186.38,186.29,0.80492849]
[1734866991312,7.966,186.39,186.29,0.80492849]
[1734866991623,1.63469815,186.38,186.29,0.80492849]
[1734866991840,4.84328878,186.38,186.29,0.80492849]
[1734866992138,3.20859063,186.37,186.29,0.80492849]
[1734866992316,4.84328878,186.37,186.29,0.80492849]
[1734866992844,4.84328878,186.36,186.29,0.80492849]
[1734866993138,1.63469815,186.35,186.29,0.80492849]
[1734866993439,4.84328878,186.35,186.29,0.80492849]
[1734866993945,1.63469815,186.34,186.29,0.80492849]
[1734866994117,4.84328878,186.34,186.29,0.80492849]
[1734866994319,1.63469815,186.33,186.29,0.80492849]
[1734866994520,1.63469815,186.33,186.26,0.80491578]
[1734866995026,1.63469815,186.32,186.26,0.80491578]
[1734866995347,0.50073928,186.38,186.26,0.80491578]
[1734866995746,3.20980601,186.37,186.26,0.80491578]
[1734866996041,0.50073928,186.36,186.26,0.80491578]
[1734866996434,4.84506279,186.35,186.26,0.80491578]
[1734866996633,4.84506279,186.35,186.25,23.776884]
[1734866996822,3.20980601,186.34,186.26,0.80505606]
[1734866997022,4.84506279,186.34,186.26,0.80505606]
[1734866997441,4.84506279,186.33,186.26,0.80505606]
[1734866997834,1.63525678,186.33,186.26,0.80505606]
[1734866998033,1.63525678,186.32,186.26,0.80505606]
[1734866998545,1.63525678,186.31,186.26,0.80505606]
[1734866999046,0.50073928,186.35,186.26,0.80505606]
[1734866999745,4.84895488,186.34,186.26,0.80505606]
[1734866999955,0.50073928,186.33,186.24,0.8051032]
[1734867000251,1.63656869,186.32,186.24,0.8051032]
[1734867000637,4.84895488,186.32,186.24,0.8051032]
[1734867000952,4.84895488,186.31,186.24,0.8051032]
[1734867001748,3.21238619,186.3,186.24,0.8051032]
[1734867002050,4.84895488,186.3,186.24,0.8051032]
[1734867002439,1.63656869,186.29,186.25,23.776884]
[1734867002651,1.63656869,186.29,186.26,0.93043472]
[1734867002858,1.63656869,186.29,186.27,23.776884]
[1734867003029,0.50073928,186.38,186.27,23.776884]
[1734867003540,1.63619652,186.37,186.27,23.776884]
[1734867003840,0.50073928,186.36,186.28,0.80497954]
[1734867004044,1.63619652,186.36,186.28,0.80497954]
[1734867004365,3.21172753,186.35,186.28,0.80497954]
[1734867004740,1.63613931,186.34,186.28,0.80497954]
[1734867005040,4.84786684,186.34,186.28,0.80497954]
[1734867005233,4.84786684,186.34,186.27,0.8049511]
[1734867005439,4.84786684,186.33,186.24,20.8049511]
[1734867005830,2.13687859,186.32,186.22,0.80511922]
[1734867006034,13.32630612,186.32,186.22,0.80511922]
[1734867006238,4.84786684,186.32,186.23,0.12549]
[1734867006457,1.63613931,186.31,186.24,0.80502858]
[1734867006753,4.84786684,186.31,186.24,0.80502858]
[1734867006952,1.63613931,186.3,186.24,0.80502858]
[1734867007126,4.84786684,186.3,186.24,0.80502858]
[1734867007330,4.84786684,186.3,186.25,23.776884]
[1734867007526,4.84786684,186.3,186.26,0.80503385]
[1734867007727,1.63613931,186.29,186.26,0.80503385]
[1734867008163,20.0,186.35,186.26,0.80503385]
[1734867008738,4.84251184,186.34,186.26,0.80503385]
[1734867008941,0.50073928,186.33,186.24,0.80503295]
[1734867009145,0.50073928,186.33,186.22,23.776884]
[1734867009353,4.84251184,186.32,186.22,23.776884]
[1734867009539,0.50073928,186.31,186.22,23.776884]
[1734867009856,1.6342379,186.31,186.23,0.80523084]
[1734867010058,3.20827394,186.3,186.23,0.80523084]
[1734867010433,4.84251184,186.3,186.23,0.80523084]
[1734867010635,1.6342379,186.3,186.23,0.80523084]
[1734867010834,1.6342379,186.29,186.23,0.80523084]
[1734867011461,20.50073928,186.34,186.23,0.80523084]
[1734867011759,20.0,186.3,186.19,1.6513]
[1734867011955,0.50073928,186.29,186.19,2.45665275]
[1734867012535,0.50073928,186.29,186.19,0.80535275]
[1734867012752,20.0,186.25,186.15,9.22258271]
[1734867012942,0.50073928,186.24,186.15,9.22258271]
[1734867013460,1.63192145,186.23,186.14,0.80552806]
[1734867013760,4.83821874,186.23,186.14,0.80552806]
[1734867014353,0.50073928,186.24,186.14,0.80552806]
[1734867014663,1.63115927,186.22,186.15,0.80556264]
[1734867014956,3.20433169,186.23,186.15,0.80556264]
[1734867015350,0.50073928,186.24,186.15,0.80556264]
[1734867015546,0.50073928,186.24,186.14,23.776884]
[1734867015860,0.50073928,186.24,186.13,0.80553981]
[1734867016260,1.62918497,186.23,186.13,0.80553981]
[1734867016639,1.62918497,186.22,186.13,0.80553981]
[1734867017155,0.50073928,186.24,186.13,0.80553981]
[1734867017457,0.50073928,186.24,186.14,23.776884]
[1734867017657,20.0,186.25,186.15,0.80552847]
[1734867017849,1.62684377,186.23,186.16,23.776884]
[1734867018049,1.62684377,186.23,186.17,0.80541716]
[1734867018437,7.9777,186.28,186.18,23.776884]
[1734867018749,7.9777,186.28,186.19,0.80534283]
[1734867018941,4.82094705,186.27,186.19,0.80534283]
[1734867019447,1.62649377,186.27,186.19,0.80534283]
[1734867019646,1.62649377,186.26,186.19,0.80534283]
[1734867019948,1.62649377,186.26,186.2,23.776884]
[1734867020132,1.62649377,186.26,186.22,23.776884]
[1734867020331,7.7403,186.33,186.23,0.80511549]
[1734867020753,1.62605688,186.32,186.24,23.776884]
[1734867020943,4.81933574,186.32,186.24,23.776884]
[1734867021142,4.81933574,186.32,186.25,0.80512007]
[1734867021660,4.81933574,186.31,186.26,23.776884]
[1734867021836,4.81933574,186.31,186.27,0.8050049]
[1734867022035,1.62605688,186.3,186.27,0.8050049]
[1734867022759,7.7403,186.33,186.27,0.8050049]
[1734867023262,1.62618166,186.32,186.27,0.8050049]
[1734867023440,4.81910617,186.32,186.27,0.8050049]
[1734867023841,1.62618166,186.31,186.26,23.776884]
[1734867024544,2.12692094,186.32,186.22,0.80504426]
[1734867024745,1.62618166,186.32,186.23,23.776884]
[1734867025061,1.62618166,186.31,186.24,0.12549]
[1734867025265,1.62618166,186.31,186.26,23.776884]
[1734867025557,7.7403,186.33,186.18,137.5184]
[1734867025558,0.50073928,186.32,186.21,20.0]
[1734867025755,7.7403,186.33,186.22,44.58204223]
[1734867025950,0.50073928,186.32,186.22,24.58204223]
[1734867026160,2.12721869,186.32,186.22,24.58204223]
[1734867026461,5.32056609,186.32,186.22,24.58204223]
[1734867026649,5.32056609,186.32,186.22,0.80515823]
[1734867026847,5.32056609,186.32,186.2,20.0]
[1734867026848,4.81982681,186.31,186.21,0.8052315]
[1734867027047,0.50073928,186.3,186.21,0.8052315]
[1734867027244,1.62647941,186.29,186.21,0.8052315]
[1734867027451,0.50073928,186.28,186.19,0.80531464]
[1734867027662,2.12721869,186.29,186.19,0.80531464]
[1734867028065,20.0,186.3,186.19,0.80531464]
[1734867028459,0.50073928,186.29,186.2,23.776884]
[1734867028645,0.50073928,186.29,186.2,0.80529751]
[1734867028852,20.0,186.3,186.2,0.80529751]
[1734867029053,20.0,186.3,186.21,23.776884]
[1734867029255,1.62709043,186.29,186.23,23.776884]
[1734867029469,1.62709043,186.29,186.25,23.776884]
[1734867029655,1.62709043,186.29,186.26,0.80506842]
[1734867029850,7.7403,186.33,186.26,0.80506842]
[1734867030449,4.8239889,186.32,186.26,0.80506842]
[1734867030650,4.8239889,186.32,186.23,23.902374]
[1734867030943,1.62783643,186.31,186.25,23.776884]
[1734867031664,7.7403,186.33,186.25,23.776884]
[1734867031841,7.7403,186.33,186.25,0.80506345]
[1734867032243,4.82589318,186.32,186.25,0.80506345]
[1734867032855,1.62878768,186.32,186.25,0.80506345]
[1734867033164,1.62878768,186.31,186.25,0.80506345]
[1734867033781,1.62878768,186.3,186.24,23.776884]
[1734867034475,0.50073928,186.32,186.24,23.776884]
[1734867035474,4.82731793,186.31,186.2,23.776884]
[1734867035676,0.50073928,186.3,186.21,0.80526655]
[1734867036066,1.62913737,186.29,186.21,0.80526655]
[1734867036655,1.62913737,186.28,186.22,0.80521893]
[1734867037150,0.50073928,186.32,186.19,0.80522244]
[1734867037356,0.50073928,186.32,186.2,23.776884]
[1734867037557,0.50073928,186.32,186.21,0.80522647]
[1734867038077,4.82825808,186.31,186.21,0.80522647]
[1734867038257,0.50073928,186.3,186.21,0.80522647]
[1734867038459,3.69974386,186.3,186.21,0.80522647]
[1734867038855,1.6292535,186.29,186.19,23.776884]
[1734867039062,0.50073928,186.28,186.19,23.776884]
[1734867039279,1.6292535,186.28,186.2,0.80535251]
[1734867039968,0.50073928,186.29,186.2,0.80535251]
[1734867041480,1.63002575,186.28,186.21,23.776884]
[1734867041684,1.63002575,186.28,186.22,0.8052529]
[1734867041989,1.63002575,186.27,186.22,0.8052529]
[1734867042659,20.0,186.3,186.21,23.776884]
[1734867042982,3.19942629,186.29,186.21,23.776884]
[1734867043154,4.8288913,186.29,186.22,0.80525369]
[1734867043585,1.62946501,186.29,186.22,0.80525369]
[1734867043884,1.62946501,186.28,186.21,23.776884]
[1734867044260,0.50073928,186.29,186.21,23.776884]
[1734867044461,0.50073928,186.29,186.18,0.80525649]
[1734867044791,0.50073928,186.29,186.15,0.80539844]
[1734867045292,20.0,186.25,186.15,0.80539844]
[1734867045591,0.50073928,186.24,186.15,0.80539844]
[1734867045802,3.70067742,186.24,186.13,0.80559415]
[1734867045975,1.6292956,186.23,186.13,0.80559415]
[1734867046287,20.0,186.21,186.13,0.80559415]
[1734867046464,7.6382,186.2,186.13,0.80559415]
[1734867046885,7.6382,186.2,186.11,0.12549]
[1734867047073,7.6382,186.2,186.1,0.80560652]
[1734867047676,7.6382,186.2,186.11,23.902374]
[1734867047878,7.6382,186.2,186.13,23.776884]
[1734867048291,20.0,186.24,186.15,23.776884]
[1734867048491,20.0,186.24,186.16,0.80549265]
[1734867048864,1.62759675,186.23,186.16,0.80549265]
[1734867049065,4.82491802,186.23,186.16,0.80549265]
[1734867049480,1.62759675,186.22,186.15,23.776884]
[1734867050080,1.62759675,186.21,186.15,23.776884]
[1734867050692,20.0,186.24,186.15,23.776884]
[1734867051094,0.50073928,186.26,186.15,23.776884]
[1734867051272,1.62671702,186.23,186.15,23.776884]
[1734867051868,1.62671702,186.22,186.15,23.776884]
[1734867052292,1.62671702,186.21,186.15,23.776884]
[1734867052492,1.62671702,186.21,186.16,0.80550384]
[1734867052692,1.62671702,186.21,186.15,23.776884]
[1734867052895,0.50073928,186.26,186.15,23.776884]
[1734867053477,20.0,186.24,186.15,23.776884]
[1734867053683,20.50073928,186.23,186.15,23.776884]
[1734867053989,23.69507443,186.23,186.15,23.776884]
[1734867054194,1.62595631,186.22,186.15,23.776884]
[1734867054866,0.50073928,186.23,186.15,23.776884]
[1734867054867,1.62595631,186.21,186.15,23.776884]
[1734867055070,1.62595631,186.21,186.12,20.80550203]
[1734867055486,0.50073928,186.23,186.12,20.80550203]
[1734867055990,1.62538062,186.22,186.12,20.80550203]
[1734867056187,1.62538062,186.22,186.12,0.80550203]
[1734867056393,1.62538062,186.22,186.11,0.12549]
[1734867056580,1.62538062,186.21,186.13,0.80561528]
[1734867057196,0.50073928,186.23,186.13,0.80561528]
[1734867057571,0.50073928,186.23,186.12,23.776884]
[1734867057871,1.62531881,186.22,186.13,0.8055882]
[1734867058371,0.50073928,186.23,186.13,0.8055882]
[1734867059468,1.62539745,186.22,186.13,0.8055882]
[1734867059797,0.50073928,186.21,186.13,0.8055882]
[1734867060294,0.50073928,186.23,186.13,0.8055882]
[1734867061088,20.0,186.24,186.13,0.8055882]
[1734867061317,0.50073928,186.26,186.14,23.776884]
[1734867061474,0.50073928,186.26,186.17,20.0]
[1734867061674,3.19327253,186.25,186.16,23.776884]
[1734867062075,1.62708166,186.24,186.17,0.80542919]
[1734867062572,0.50073928,186.26,186.17,0.80542919]
[1734867062795,7.6382,186.27,186.17,0.80542919]
[1734867063092,0.50073928,186.26,186.17,0.80542919]
[1734867063293,1.62880339,186.26,186.17,0.80542919]
[1734867063671,4.82792595,186.25,186.17,0.80542919]
[1734867064282,1.62880339,186.25,186.17,0.80542919]
[1734867064487,1.62880339,186.24,186.17,0.80542919]
[1734867064996,8.13893928,186.27,186.17,0.80542919]
[1734867065399,1.62818641,186.26,186.17,0.80542919]
[1734867065700,0.50073928,186.25,186.16,23.776884]
[1734867065896,0.50073928,186.25,186.14,20.0]
[1734867066080,2.12892569,186.25,186.14,20.0]
[1734867066279,2.12892569,186.25,186.15,0.80555456]
[1734867066600,1.62818641,186.24,186.15,0.80555456]
[1734867067103,1.62818641,186.23,186.15,0.80555456]
[1734867067280,1.62818641,186.23,186.11,20.0]
[1734867067281,1.62818641,186.23,186.13,23.902374]
[1734867067482,1.62818641,186.23,186.15,23.776884]
[1734867067892,0.50073928,186.26,186.15,23.776884]
[1734867068501,1.63004161,186.25,186.15,0.80549187]
[1734867068701,0.50073928,186.24,186.15,0.80549187]
[1734867069106,1.63004161,186.23,186.12,0.80556577]
[1734867069278,8.2325,186.21,186.1,0.80563541]
[1734867069472,0.50073928,186.2,186.1,0.80563541]
[1734867069678,1.63004161,186.19,186.1,0.80563541]
[1734867069980,0.50073928,186.18,186.1,0.80563541]
[1734867070199,2.13078089,186.18,186.07,0.80575565]
[1734867070501,2.13078089,186.18,186.08,20.12549]
[1734867070705,1.63004161,186.17,186.09,0.80576417]
[1734867071086,1.63004161,186.17,186.1,23.776884]
[1734867071282,0.50073928,186.2,186.1,23.776884]
[1734867071723,4.82956341,186.19,186.1,23.776884]
[1734867071913,0.50073928,186.18,186.1,23.776884]
[1734867072116,1.62867883,186.19,186.1,23.776884]
[1734867072417,1.62867883,186.17,186.1,23.776884]
[1734867072791,0.50073928,186.2,186.1,23.776884]